[Event "Late-Titled-Tuesday-Blitz-June-18-2024"]
[Site "Chess.com"]
[Date "2024.06.18"]
[Round "10"]
[White "micke12a"]
[Black "djano"]
[Result "1/2-1/2"]
[WhiteElo "2415"]
[BlackElo "2586"]
[TimeControl "180+1"]
[EndTime "15:57:36 PDT"]
[Termination "Game drawn by repetition"]

1. d4 {[%clk 0:02:57.8]} 1... Nf6 {[%clk 0:02:59.6]} 2. Nc3 {[%clk 0:02:57.6]}
2... d6 {[%clk 0:02:57.7]} 3. e4 {[%clk 0:02:57.4]} 3... Nbd7 {[%clk 0:02:57.4]}
4. g3 {[%clk 0:02:54.7]} 4... c6 {[%clk 0:02:54.8]} 5. a4 {[%clk 0:02:53.6]}
5... g6 {[%clk 0:02:51.9]} 6. Bg2 {[%clk 0:02:52.3]} 6... Bg7 {[%clk 0:02:52.3]}
7. Nge2 {[%clk 0:02:52.9]} 7... O-O {[%clk 0:02:52.5]} 8. O-O {[%clk 0:02:53.6]}
8... e5 {[%clk 0:02:52.3]} 9. h3 {[%clk 0:02:54.2]} 9... exd4 {[%clk 0:02:51.9]}
10. Nxd4 {[%clk 0:02:53.8]} 10... Nc5 {[%clk 0:02:48.1]} 11. Re1 {[%clk
0:02:54.3]} 11... Re8 {[%clk 0:02:44.9]} 12. Bf4 {[%clk 0:02:51.7]} 12... Nh5
{[%clk 0:02:43]} 13. Be3 {[%clk 0:02:50.9]} 13... Nf6 {[%clk 0:02:40.9]} 14. Bf4
{[%clk 0:02:50.2]} 14... Nh5 {[%clk 0:02:36.9]} 15. Be3 {[%clk 0:02:49.1]} 15...
Qa5 {[%clk 0:02:28.3]} 16. Qd2 {[%clk 0:02:43.8]} 16... Ne6 {[%clk 0:02:11.3]}
17. Nxe6 {[%clk 0:02:37.4]} 17... Bxe6 {[%clk 0:02:11]} 18. Bd4 {[%clk
0:02:37.7]} 18... Be5 {[%clk 0:02:07.7]} 19. Rab1 {[%clk 0:02:18]} 19... Qb4
{[%clk 0:02:04.7]} 20. Bxe5 {[%clk 0:02:17.7]} 20... dxe5 {[%clk 0:02:05.6]} 21.
Bf3 {[%clk 0:02:09.5]} 21... Nf6 {[%clk 0:01:59.6]} 22. Qg5 {[%clk 0:02:08.6]}
22... Kg7 {[%clk 0:01:54.1]} 23. Kg2 {[%clk 0:01:56.2]} 23... Rad8 {[%clk
0:01:49.3]} 24. Qe3 {[%clk 0:01:53.5]} 24... b6 {[%clk 0:01:39.5]} 25. b3 {[%clk
0:01:51.8]} 25... Rd7 {[%clk 0:01:30]} 26. Rbd1 {[%clk 0:01:50.4]} 26... Red8
{[%clk 0:01:29.1]} 27. Rxd7 {[%clk 0:01:49.7]} 27... Rxd7 {[%clk 0:01:30]} 28.
Rd1 {[%clk 0:01:49.9]} 28... Rd4 {[%clk 0:01:24.2]} 29. Na2 {[%clk 0:01:35.5]}
29... Qa3 {[%clk 0:01:13.6]} 30. Nc3 {[%clk 0:01:34.3]} 30... Qc5 {[%clk
0:01:13.6]} 31. Rd3 {[%clk 0:01:16.9]} 31... h5 {[%clk 0:01:06]} 32. Ne2 {[%clk
0:01:10.4]} 32... Rxd3 {[%clk 0:01:04.7]} 33. Qxd3 {[%clk 0:01:09.7]} 33... b5
{[%clk 0:00:57]} 34. axb5 {[%clk 0:01:06.9]} 34... cxb5 {[%clk 0:00:57.9]} 35.
Nc3 {[%clk 0:01:06.6]} 35... a6 {[%clk 0:00:54.3]} 36. Nd5 {[%clk 0:00:55.9]}
36... Bxd5 {[%clk 0:00:41.9]} 37. exd5 {[%clk 0:00:55.7]} 37... Ne8 {[%clk
0:00:42.4]} 38. g4 {[%clk 0:00:34.3]} 38... hxg4 {[%clk 0:00:41.2]} 39. hxg4
{[%clk 0:00:34.3]} 39... Nd6 {[%clk 0:00:41.5]} 40. Be2 {[%clk 0:00:26.5]} 40...
a5 {[%clk 0:00:38.1]} 41. g5 {[%clk 0:00:14.9]} 41... a4 {[%clk 0:00:35.6]} 42.
bxa4 {[%clk 0:00:14.2]} 42... bxa4 {[%clk 0:00:36.5]} 43. c4 {[%clk 0:00:07]}
43... a3 {[%clk 0:00:33.7]} 44. Qc3 {[%clk 0:00:07.3]} 44... Nf5 {[%clk
0:00:22]} 45. Qxe5+ {[%clk 0:00:06.9]} 45... Kh7 {[%clk 0:00:22]} 46. Qh2+
{[%clk 0:00:05.8]} 46... Kg8 {[%clk 0:00:20.3]} 47. Qb8+ {[%clk 0:00:05.7]}
47... Kg7 {[%clk 0:00:18.3]} 48. Qe5+ {[%clk 0:00:05.5]} 48... Kg8 {[%clk
0:00:14.8]} 49. Bg4 {[%clk 0:00:03.1]} 49... a2 {[%clk 0:00:10.2]} 50. Bxf5
{[%clk 0:00:02.9]} 50... gxf5 {[%clk 0:00:04.9]} 51. g6 {[%clk 0:00:03.1]} 51...
fxg6 {[%clk 0:00:05.4]} 52. Qe6+ {[%clk 0:00:03.1]} 52... Kf8 {[%clk 0:00:05.6]}
53. Qf6+ {[%clk 0:00:03]} 53... Ke8 {[%clk 0:00:05.4]} 54. Qxg6+ {[%clk
0:00:03.5]} 54... Kd8 {[%clk 0:00:05.4]} 55. Qg8+ {[%clk 0:00:01.9]} 55... Kc7
{[%clk 0:00:05.6]} 56. Qf7+ {[%clk 0:00:02]} 56... Kb6 {[%clk 0:00:06.2]} 57.
Qf6+ {[%clk 0:00:02]} 57... Ka5 {[%clk 0:00:06.7]} 58. Qb2 {[%clk 0:00:02.1]}
58... Ka6 {[%clk 0:00:02.4]} 59. Qxa2+ {[%clk 0:00:02.2]} 59... Kb7 {[%clk
0:00:03.3]} 60. Qb3+ {[%clk 0:00:02.2]} 60... Kc8 {[%clk 0:00:03.9]} 61. Qd3
{[%clk 0:00:03.1]} 61... f4 {[%clk 0:00:03.8]} 62. Kf3 {[%clk 0:00:03.4]} 62...
Qe7 {[%clk 0:00:04.3]} 63. Qe4 {[%clk 0:00:03.8]} 63... Qc5 {[%clk 0:00:04.1]}
64. Qxf4 {[%clk 0:00:04.2]} 64... Kb7 {[%clk 0:00:03.8]} 65. Qe4 {[%clk
0:00:04.4]} 65... Ka8 {[%clk 0:00:04.3]} 66. Qe3 {[%clk 0:00:04.7]} 66... Qf8+
{[%clk 0:00:04.1]} 67. Ke4 {[%clk 0:00:04.8]} 67... Qe7+ {[%clk 0:00:04.2]} 68.
Kd4 {[%clk 0:00:05.5]} 68... Qa7+ {[%clk 0:00:04.2]} 69. c5 {[%clk 0:00:06.1]}
69... Qa1+ {[%clk 0:00:03.2]} 70. Ke4 {[%clk 0:00:06.1]} 70... Qb1+ {[%clk
0:00:03.1]} 71. Ke5 {[%clk 0:00:06.6]} 71... Qa1+ {[%clk 0:00:03]} 72. Qd4
{[%clk 0:00:06.7]} 72... Qe1+ {[%clk 0:00:02.9]} 73. Kd6 {[%clk 0:00:07.1]}
73... Qe8 {[%clk 0:00:02.4]} 74. c6 {[%clk 0:00:07.2]} 74... Qd8+ {[%clk
0:00:02.3]} 75. Kc5 {[%clk 0:00:06.8]} 75... Qa5+ {[%clk 0:00:02.5]} 76. Kc4
{[%clk 0:00:07.4]} 76... Qa4+ {[%clk 0:00:03]} 77. Kd3 {[%clk 0:00:08]} 77...
Qd1+ {[%clk 0:00:03.5]} 78. Ke4 {[%clk 0:00:08.1]} 78... Qg4+ {[%clk 0:00:03.7]}
79. Ke5 {[%clk 0:00:07.9]} 79... Qg7+ {[%clk 0:00:03.8]} 80. Ke4 {[%clk
0:00:08.2]} 80... Qg4+ {[%clk 0:00:04.2]} 81. Kd3 {[%clk 0:00:08.8]} 81... Qd1+
{[%clk 0:00:04.3]} 82. Kc4 {[%clk 0:00:08.5]} 82... Qa4+ {[%clk 0:00:04.5]} 83.
Kc3 {[%clk 0:00:08.9]} 83... Qa1+ {[%clk 0:00:04.3]} 84. Kc4 {[%clk 0:00:09.3]}
84... Qa4+ {[%clk 0:00:04.1]} 1/2-1/2

[Event "Late-Titled-Tuesday-Blitz-June-18-2024"]
[Site "Chess.com"]
[Date "2024.06.18"]
[Round "10"]
[White "Oleg_Papayan"]
[Black "manitodeplomo"]
[Result "1/2-1/2"]
[WhiteElo "2526"]
[BlackElo "2652"]
[TimeControl "180+1"]
[EndTime "15:57:57 PDT"]
[Termination "Game drawn by repetition"]

1. d4 {[%clk 0:03:00.9]} 1... d5 {[%clk 0:02:59.2]} 2. Nc3 {[%clk 0:03:01.2]}
2... c6 {[%clk 0:02:57.6]} 3. Bf4 {[%clk 0:03:00.7]} 3... Qb6 {[%clk 0:02:57.8]}
4. Rb1 {[%clk 0:03:00.2]} 4... Nf6 {[%clk 0:02:52.7]} 5. e3 {[%clk 0:02:59.7]}
5... Bf5 {[%clk 0:02:30.5]} 6. Bd3 {[%clk 0:02:59.6]} 6... Bxd3 {[%clk
0:02:29.8]} 7. cxd3 {[%clk 0:03:00.5]} 7... e6 {[%clk 0:02:28.9]} 8. Nf3 {[%clk
0:02:59.8]} 8... Be7 {[%clk 0:02:28.4]} 9. O-O {[%clk 0:02:59.6]} 9... O-O
{[%clk 0:02:29]} 10. Na4 {[%clk 0:02:58]} 10... Qa6 {[%clk 0:02:24]} 11. a3
{[%clk 0:02:53.4]} 11... Nbd7 {[%clk 0:02:18.1]} 12. Ne5 {[%clk 0:02:46.8]}
12... Nxe5 {[%clk 0:02:16.2]} 13. dxe5 {[%clk 0:02:40.4]} 13... Nd7 {[%clk
0:02:15.2]} 14. d4 {[%clk 0:02:39]} 14... b5 {[%clk 0:02:12.1]} 15. Nc3 {[%clk
0:02:38.2]} 15... Qb6 {[%clk 0:01:56.1]} 16. e4 {[%clk 0:02:01.5]} 16... a5
{[%clk 0:01:47.1]} 17. exd5 {[%clk 0:02:01.9]} 17... cxd5 {[%clk 0:01:46.4]} 18.
a4 {[%clk 0:01:40.1]} 18... bxa4 {[%clk 0:01:36.7]} 19. Qxa4 {[%clk 0:01:38.4]}
19... Qb7 {[%clk 0:01:34.7]} 20. Rfc1 {[%clk 0:01:30.3]} 20... Rfc8 {[%clk
0:01:33.7]} 21. Be3 {[%clk 0:00:27.8]} 21... Rc4 {[%clk 0:01:18.2]} 22. Qb5
{[%clk 0:00:27.3]} 22... Qc8 {[%clk 0:01:17.7]} 23. Na4 {[%clk 0:00:21.4]} 23...
Rb8 {[%clk 0:00:32.7]} 24. Qxa5 {[%clk 0:00:19.7]} 24... Bb4 {[%clk 0:00:31.9]}
25. Qa7 {[%clk 0:00:16.2]} 25... Ra8 {[%clk 0:00:30.7]} 26. Rxc4 {[%clk
0:00:11.4]} 26... dxc4 {[%clk 0:00:28]} 27. Nb6 {[%clk 0:00:11.9]} 27... Rxa7
{[%clk 0:00:17.7]} 28. Nxc8 {[%clk 0:00:12.1]} 28... Rc7 {[%clk 0:00:17.5]} 29.
Nd6 {[%clk 0:00:08.3]} 29... Bxd6 {[%clk 0:00:17.4]} 30. exd6 {[%clk 0:00:09.2]}
30... Rc6 {[%clk 0:00:18]} 31. Rc1 {[%clk 0:00:08.7]} 31... Nb6 {[%clk
0:00:16.9]} 32. b3 {[%clk 0:00:08]} 32... Kf8 {[%clk 0:00:14.4]} 33. bxc4 {[%clk
0:00:07]} 33... Rxc4 {[%clk 0:00:14]} 34. Rxc4 {[%clk 0:00:04.1]} 34... Nxc4
{[%clk 0:00:13.4]} 35. Kf1 {[%clk 0:00:02.9]} 35... Nxd6 {[%clk 0:00:11.5]} 36.
Ke2 {[%clk 0:00:03.4]} 36... Nf5 {[%clk 0:00:10.9]} 37. f3 {[%clk 0:00:03.9]}
37... Ne7 {[%clk 0:00:10.5]} 38. Bf4 {[%clk 0:00:02.2]} 38... Nd5 {[%clk
0:00:10.3]} 39. Bd6+ {[%clk 0:00:02.3]} 39... Ke8 {[%clk 0:00:10.4]} 40. g3
{[%clk 0:00:02.1]} 40... Kd7 {[%clk 0:00:09.9]} 41. Bf8 {[%clk 0:00:01.8]} 41...
g6 {[%clk 0:00:09.3]} 42. Kd3 {[%clk 0:00:01.6]} 42... f6 {[%clk 0:00:08.8]} 43.
g4 {[%clk 0:00:01.8]} 43... Ke8 {[%clk 0:00:08.3]} 44. Ba3 {[%clk 0:00:02.3]}
44... Kd7 {[%clk 0:00:08.3]} 45. Ke4 {[%clk 0:00:01.8]} 45... Nc3+ {[%clk
0:00:07.5]} 46. Kd3 {[%clk 0:00:01.9]} 46... Nd5 {[%clk 0:00:07]} 47. Bc1 {[%clk
0:00:02.5]} 47... Ke7 {[%clk 0:00:06.1]} 48. Ke4 {[%clk 0:00:02.5]} 48... Kd6
{[%clk 0:00:05.9]} 49. Bd2 {[%clk 0:00:02.9]} 49... f5+ {[%clk 0:00:05.9]} 50.
Kd3 {[%clk 0:00:02.2]} 50... Kc6 {[%clk 0:00:05.5]} 51. h4 {[%clk 0:00:01.8]}
51... Ne7 {[%clk 0:00:04.9]} 52. Bg5 {[%clk 0:00:01.2]} 52... Nd5 {[%clk
0:00:04.4]} 53. Bd2 {[%clk 0:00:01.9]} 53... Nb6 {[%clk 0:00:04.3]} 54. Bf4
{[%clk 0:00:01.1]} 54... Kd5 {[%clk 0:00:04.3]} 55. Bd2 {[%clk 0:00:01.7]} 55...
Nd7 {[%clk 0:00:04]} 56. Bf4 {[%clk 0:00:01.7]} 56... Nf6 {[%clk 0:00:04.1]} 57.
gxf5 {[%clk 0:00:01]} 57... gxf5 {[%clk 0:00:03.8]} 58. Be5 {[%clk 0:00:01.6]}
58... Nd7 {[%clk 0:00:03.8]} 59. f4 {[%clk 0:00:01.3]} 59... Nb6 {[%clk
0:00:01.8]} 60. Bc7 {[%clk 0:00:01]} 60... Nc4 {[%clk 0:00:01.9]} 61. Be5 {[%clk
0:00:01.4]} 61... Na3 {[%clk 0:00:02.2]} 62. Kc3 {[%clk 0:00:01.3]} 62... Nb5+
{[%clk 0:00:02.4]} 63. Kd3 {[%clk 0:00:02]} 63... Na7 {[%clk 0:00:02.9]} 64. Bf6
{[%clk 0:00:02.6]} 64... Nc6 {[%clk 0:00:03.2]} 65. Be5 {[%clk 0:00:03.5]} 65...
Ne7 {[%clk 0:00:03.3]} 66. Bf6 {[%clk 0:00:03.3]} 66... Nc6 {[%clk 0:00:03.6]}
67. Be5 {[%clk 0:00:03.6]} 67... h5 {[%clk 0:00:04.3]} 68. Bf6 {[%clk
0:00:02.6]} 68... Nb4+ {[%clk 0:00:03.9]} 69. Ke3 {[%clk 0:00:02.5]} 69... Na6
{[%clk 0:00:03.8]} 70. Kd3 {[%clk 0:00:03]} 70... Nb8 {[%clk 0:00:03.4]} 71. Be5
{[%clk 0:00:03.9]} 71... Nd7 {[%clk 0:00:02.9]} 72. Bg7 {[%clk 0:00:04.3]} 72...
Nb6 {[%clk 0:00:02.6]} 73. Be5 {[%clk 0:00:04.7]} 73... Nc4 {[%clk 0:00:02.7]}
74. Bf6 {[%clk 0:00:05.1]} 74... Nd6 {[%clk 0:00:03.1]} 75. Be5 {[%clk
0:00:05.4]} 75... Ne4 {[%clk 0:00:03.1]} 76. Bg7 {[%clk 0:00:05.8]} 76... Nf2+
{[%clk 0:00:02]} 77. Ke3 {[%clk 0:00:05.5]} 77... Ng4+ {[%clk 0:00:02.4]} 78.
Kd3 {[%clk 0:00:05.9]} 78... Nh2 {[%clk 0:00:02.2]} 79. Ke3 {[%clk 0:00:05.6]}
79... Ng4+ {[%clk 0:00:02.2]} 80. Kd3 {[%clk 0:00:05.8]} 80... Kc6 {[%clk
0:00:02.6]} 81. Kc4 {[%clk 0:00:05.3]} 81... Ne3+ {[%clk 0:00:02.9]} 82. Kd3
{[%clk 0:00:05.7]} 82... Nd5 {[%clk 0:00:03.8]} 83. Be5 {[%clk 0:00:05.6]} 83...
Nb6 {[%clk 0:00:03.6]} 84. Bg7 {[%clk 0:00:05.7]} 84... Kd5 {[%clk 0:00:04]} 85.
Be5 {[%clk 0:00:06.4]} 85... Nd7 {[%clk 0:00:04.5]} 86. Bg7 {[%clk 0:00:06.7]}
86... Nb8 {[%clk 0:00:04.6]} 87. Be5 {[%clk 0:00:07.2]} 87... Nc6 {[%clk
0:00:05.1]} 88. Bf6 {[%clk 0:00:07.8]} 88... Na5 {[%clk 0:00:04.7]} 89. Be5
{[%clk 0:00:07.9]} 89... Nc4 {[%clk 0:00:05.2]} 90. Bf6 {[%clk 0:00:08.3]} 90...
Nd6 {[%clk 0:00:05.6]} 91. Be5 {[%clk 0:00:08.6]} 91... Ne4 {[%clk 0:00:05.6]}
92. Bg7 {[%clk 0:00:08.3]} 92... Nf2+ {[%clk 0:00:05.7]} 93. Ke3 {[%clk
0:00:08.9]} 93... Ng4+ {[%clk 0:00:05.7]} 1/2-1/2

[Event "Late-Titled-Tuesday-Blitz-June-18-2024"]
[Site "Chess.com"]
[Date "2024.06.18"]
[Round "10"]
[White "farzadbfd"]
[Black "RZ0"]
[Result "1-0"]
[WhiteElo "2712"]
[BlackElo "2557"]
[TimeControl "180+1"]
[EndTime "15:59:06 PDT"]
[Termination "farzadbfd won by resignation"]

1. e4 {[%clk 0:03:00.9]} 1... c5 {[%clk 0:02:58.6]} 2. Nc3 {[%clk 0:03:01.1]}
2... d6 {[%clk 0:02:58.2]} 3. g3 {[%clk 0:03:01.5]} 3... Nc6 {[%clk 0:02:57.3]}
4. Bg2 {[%clk 0:03:01.5]} 4... g6 {[%clk 0:02:57.7]} 5. d3 {[%clk 0:03:01.9]}
5... Bg7 {[%clk 0:02:58.1]} 6. Be3 {[%clk 0:03:02.5]} 6... Rb8 {[%clk
0:02:57.5]} 7. Qd2 {[%clk 0:03:02.9]} 7... b5 {[%clk 0:02:55.9]} 8. Nge2 {[%clk
0:03:03.3]} 8... b4 {[%clk 0:02:53.5]} 9. Nd1 {[%clk 0:03:03.9]} 9... Nd4 {[%clk
0:02:52.6]} 10. O-O {[%clk 0:03:02.9]} 10... h5 {[%clk 0:02:50.9]} 11. h3 {[%clk
0:02:57.9]} 11... Nxe2+ {[%clk 0:02:39.8]} 12. Qxe2 {[%clk 0:02:57.8]} 12... Nf6
{[%clk 0:02:40.7]} 13. f4 {[%clk 0:02:52.7]} 13... O-O {[%clk 0:02:36.4]} 14. f5
{[%clk 0:02:52.6]} 14... a5 {[%clk 0:02:27.9]} 15. Qd2 {[%clk 0:02:52.2]} 15...
Kh7 {[%clk 0:02:17.1]} 16. Bg5 {[%clk 0:02:52.1]} 16... Qb6 {[%clk 0:02:14.4]}
17. Ne3 {[%clk 0:02:51.8]} 17... Bb7 {[%clk 0:02:09.7]} 18. Kh2 {[%clk
0:02:44.8]} 18... a4 {[%clk 0:02:06.7]} 19. g4 {[%clk 0:02:31.6]} 19... hxg4
{[%clk 0:02:03.1]} 20. hxg4 {[%clk 0:02:30.9]} 20... Rh8 {[%clk 0:02:03]} 21.
Kg3 {[%clk 0:02:25.1]} 21... Kg8 {[%clk 0:01:56.6]} 22. Rh1 {[%clk 0:02:25.6]}
22... Qc7 {[%clk 0:01:49.4]} 23. Rxh8+ {[%clk 0:02:23.2]} 23... Bxh8 {[%clk
0:01:48.9]} 24. Rh1 {[%clk 0:02:20.4]} 24... Bg7 {[%clk 0:01:46.2]} 25. Bf3
{[%clk 0:01:45.1]} 25... Nh7 {[%clk 0:01:45.4]} 26. Bh6 {[%clk 0:01:13.6]} 26...
Bxh6 {[%clk 0:01:34.3]} 27. Rxh6 {[%clk 0:01:13.1]} 27... d5+ {[%clk 0:01:34.4]}
28. Kg2 {[%clk 0:01:10.6]} 28... dxe4 {[%clk 0:01:31]} 29. dxe4 {[%clk
0:01:02.6]} 29... Qf4 {[%clk 0:01:23.9]} 30. Nc4 {[%clk 0:00:53]} 30... Qxd2+
{[%clk 0:01:17.5]} 31. Nxd2 {[%clk 0:00:53.9]} 31... Rd8 {[%clk 0:01:17.5]} 32.
Nc4 {[%clk 0:00:54.3]} 32... Ng5 {[%clk 0:01:16.4]} 33. fxg6 {[%clk 0:00:53.6]}
33... Kg7 {[%clk 0:01:07.9]} 34. Rh5 {[%clk 0:00:49.2]} 34... f6 {[%clk
0:01:07.4]} 35. Ne3 {[%clk 0:00:20.6]} 35... Rd2+ {[%clk 0:01:00.2]} 36. Kg3
{[%clk 0:00:20.9]} 36... Bxe4 {[%clk 0:00:59.2]} 37. Rxg5 {[%clk 0:00:20]} 37...
fxg5 {[%clk 0:00:38.3]} 38. Bxe4 {[%clk 0:00:20.1]} 38... Re2 {[%clk 0:00:35]}
39. Kf3 {[%clk 0:00:19.9]} 39... Re1 {[%clk 0:00:34]} 40. Bd3 {[%clk 0:00:16.2]}
40... e6 {[%clk 0:00:32.9]} 41. a3 {[%clk 0:00:11.1]} 41... Rb1 {[%clk
0:00:28.8]} 42. Nc4 {[%clk 0:00:11.3]} 42... bxa3 {[%clk 0:00:25.1]} 43. bxa3
{[%clk 0:00:11.4]} 43... Kf6 {[%clk 0:00:22.8]} 44. Ke3 {[%clk 0:00:11.5]} 44...
Re1+ {[%clk 0:00:22.1]} 45. Kd2 {[%clk 0:00:11.7]} 45... Rg1 {[%clk 0:00:22.2]}
46. Ne3 {[%clk 0:00:11.9]} 46... Ra1 {[%clk 0:00:21.4]} 47. Nc4 {[%clk
0:00:11.6]} 47... Rg1 {[%clk 0:00:21.5]} 48. Ne5 {[%clk 0:00:11.3]} 48... Rg3
{[%clk 0:00:16.6]} 49. Nd7+ {[%clk 0:00:10]} 49... Kg7 {[%clk 0:00:16]} 50. Nxc5
{[%clk 0:00:10.7]} 50... Rxg4 {[%clk 0:00:15.7]} 51. Nxe6+ {[%clk 0:00:11.3]}
51... Kf6 {[%clk 0:00:15.4]} 52. g7 {[%clk 0:00:11.8]} 52... Kf7 {[%clk
0:00:15.7]} 53. Bg6+ {[%clk 0:00:06.3]} 53... Kg8 {[%clk 0:00:14.4]} 54. Bd3
{[%clk 0:00:05]} 54... Rg2+ {[%clk 0:00:14.4]} 55. Ke3 {[%clk 0:00:04.9]} 55...
Rh2 {[%clk 0:00:14.5]} 56. Nxg5 {[%clk 0:00:04]} 56... Kxg7 {[%clk 0:00:13.7]}
57. Ne6+ {[%clk 0:00:04.7]} 57... Kf6 {[%clk 0:00:13.7]} 58. Nc5 {[%clk
0:00:05.6]} 58... Rh3+ {[%clk 0:00:13.8]} 59. Kd4 {[%clk 0:00:06.2]} 59... Rh4+
{[%clk 0:00:14.3]} 60. Kc3 {[%clk 0:00:06.5]} 60... Ke7 {[%clk 0:00:14.8]} 61.
Bc4 {[%clk 0:00:06.5]} 61... Kd6 {[%clk 0:00:15]} 62. Nxa4 {[%clk 0:00:07.2]}
62... Rh3+ {[%clk 0:00:14.5]} 63. Bd3 {[%clk 0:00:06.8]} 63... Rh4 {[%clk
0:00:14.8]} 64. Nb2 {[%clk 0:00:07.4]} 64... Kc5 {[%clk 0:00:14.9]} 65. Kb3
{[%clk 0:00:08.1]} 65... Rh8 {[%clk 0:00:13.9]} 66. a4 {[%clk 0:00:08.8]} 66...
Rb8+ {[%clk 0:00:14]} 67. Bb5 {[%clk 0:00:09.7]} 67... Kd4 {[%clk 0:00:14]} 68.
Nd3 {[%clk 0:00:10.6]} 68... Rc8 {[%clk 0:00:13.7]} 69. Kb2 {[%clk 0:00:03.2]}
69... Rc7 {[%clk 0:00:12.3]} 70. Nc1 {[%clk 0:00:03.6]} 70... Kc5 {[%clk
0:00:11.5]} 71. Na2 {[%clk 0:00:04.5]} 71... Kb6 {[%clk 0:00:11.3]} 72. Kb3
{[%clk 0:00:05.1]} 72... Ka5 {[%clk 0:00:10.7]} 73. c3 {[%clk 0:00:06]} 73...
Rg7 {[%clk 0:00:09.8]} 74. Nb4 {[%clk 0:00:06.7]} 74... Rg1 {[%clk 0:00:09]} 75.
Nc6+ {[%clk 0:00:07.3]} 75... Kb6 {[%clk 0:00:09.3]} 76. Ne5 {[%clk 0:00:07.9]}
76... Rb1+ {[%clk 0:00:08.7]} 77. Kc4 {[%clk 0:00:08.6]} 77... Ra1 {[%clk
0:00:08.5]} 78. Nc6 {[%clk 0:00:08.7]} 78... Rc1 {[%clk 0:00:07.8]} 79. a5+
{[%clk 0:00:09]} 79... Kc7 {[%clk 0:00:07.8]} 80. Nb4 {[%clk 0:00:09.5]} 80...
Ra1 {[%clk 0:00:07.8]} 81. a6 {[%clk 0:00:09.4]} 81... Kb6 {[%clk 0:00:08.4]}
82. Bc6 {[%clk 0:00:09.9]} 82... Ra5 {[%clk 0:00:07.4]} 83. Bb7 {[%clk
0:00:10.1]} 83... Rc5+ {[%clk 0:00:07.2]} 84. Kd4 {[%clk 0:00:10.5]} 84... Ra5
{[%clk 0:00:07]} 85. Nc6 {[%clk 0:00:10.5]} 85... Ra4+ {[%clk 0:00:07]} 86. c4
{[%clk 0:00:10.1]} 86... Ra1 {[%clk 0:00:04.6]} 87. Ne5 {[%clk 0:00:10.4]} 87...
Ra5 {[%clk 0:00:04.2]} 88. Nd7+ {[%clk 0:00:10.1]} 88... Kc7 {[%clk 0:00:04.5]}
89. Nc5 {[%clk 0:00:10.2]} 89... Kb6 {[%clk 0:00:04]} 90. Nb3 {[%clk 0:00:10.9]}
90... Ra3 {[%clk 0:00:04.3]} 91. c5+ {[%clk 0:00:11.3]} 91... Kb5 {[%clk
0:00:04.5]} 92. c6 {[%clk 0:00:10.7]} 92... Kb6 {[%clk 0:00:04.6]} 93. Nc5
{[%clk 0:00:10.1]} 93... Ra5 {[%clk 0:00:03.7]} 94. Ne6 {[%clk 0:00:10.1]} 94...
Ra4+ {[%clk 0:00:02.6]} 95. Kd5 {[%clk 0:00:09.9]} 95... Ra5+ {[%clk 0:00:02.5]}
96. Kd6 {[%clk 0:00:10.5]} 96... Ra1 {[%clk 0:00:01.3]} 97. c7 {[%clk
0:00:10.8]} 97... Rd1+ {[%clk 0:00:02.2]} 98. Ke7 {[%clk 0:00:10.8]} 98... Rc1
{[%clk 0:00:02.6]} 99. c8=Q {[%clk 0:00:10.9]} 99... Rxc8 {[%clk 0:00:02.2]}
100. Bxc8 {[%clk 0:00:11.8]} 100... Ka7 {[%clk 0:00:02.2]} 101. Kd6 {[%clk
0:00:12.3]} 101... Kb6 {[%clk 0:00:02.7]} 102. Ng7 {[%clk 0:00:11.8]} 102... Ka7
{[%clk 0:00:03]} 103. Kc5 {[%clk 0:00:12.3]} 103... Kb8 {[%clk 0:00:03.1]} 104.
Bh3 {[%clk 0:00:12.9]} 104... Ka7 {[%clk 0:00:03.5]} 105. Kb5 {[%clk 0:00:13.8]}
105... Kb8 {[%clk 0:00:03.7]} 106. Bg2 {[%clk 0:00:14.5]} 106... Ka7 {[%clk
0:00:04.1]} 107. Ka5 {[%clk 0:00:14.9]} 107... Kb8 {[%clk 0:00:04.5]} 108. Kb6
{[%clk 0:00:15.5]} 108... Kc8 {[%clk 0:00:04.8]} 109. Nh5 {[%clk 0:00:15.9]}
109... Kd7 {[%clk 0:00:05.7]} 110. Ng3 {[%clk 0:00:16.3]} 110... Kd6 {[%clk
0:00:06.1]} 111. Nf1 {[%clk 0:00:16.8]} 111... Ke5 {[%clk 0:00:07]} 112. a7
{[%clk 0:00:16.9]} 112... Kf4 {[%clk 0:00:07.9]} 113. a8=Q {[%clk 0:00:16.9]}
113... Ke5 {[%clk 0:00:08.8]} 114. Qe4+ {[%clk 0:00:17]} 1-0

[Event "Late-Titled-Tuesday-Blitz-June-18-2024"]
[Site "Chess.com"]
[Date "2024.06.18"]
[Round "11"]
[White "ClauAmura"]
[Black "Oleg_Papayan"]
[Result "0-1"]
[WhiteElo "2383"]
[BlackElo "2531"]
[TimeControl "180+1"]
[EndTime "16:01:10 PDT"]
[Termination "Oleg_Papayan won by resignation"]

1. d4 {[%clk 0:03:00.9]} 1... d5 {[%clk 0:02:59.8]} 2. c4 {[%clk 0:03:00]} 2...
dxc4 {[%clk 0:03:00.7]} 3. e4 {[%clk 0:02:58.7]} 3... e5 {[%clk 0:03:00.8]} 4.
Nf3 {[%clk 0:02:51.9]} 4... exd4 {[%clk 0:03:01.2]} 5. Bxc4 {[%clk 0:02:48.1]}
5... Nc6 {[%clk 0:03:01.5]} 6. Nbd2 {[%clk 0:02:41.9]} 6... Be6 {[%clk
0:02:54.9]} 7. Bxe6 {[%clk 0:02:35]} 7... fxe6 {[%clk 0:02:55.8]} 8. Qb3 {[%clk
0:02:35.6]} 8... Qd7 {[%clk 0:02:54.5]} 9. Qxb7 {[%clk 0:02:32.9]} 9... Rb8
{[%clk 0:02:55.1]} 10. Qa6 {[%clk 0:02:30]} 10... Nge7 {[%clk 0:02:55.5]} 11.
O-O {[%clk 0:02:27.5]} 11... Ng6 {[%clk 0:02:55]} 12. Nc4 {[%clk 0:02:17.7]}
12... Be7 {[%clk 0:02:53.7]} 13. Qa3 {[%clk 0:02:03.2]} 13... Bxa3 {[%clk
0:02:53.1]} 0-1

[Event "Late-Titled-Tuesday-Blitz-June-18-2024"]
[Site "Chess.com"]
[Date "2024.06.18"]
[Round "11"]
[White "Bala-Afiada"]
[Black "romulocardoso"]
[Result "0-1"]
[WhiteElo "2064"]
[BlackElo "2309"]
[TimeControl "180+1"]
[EndTime "16:01:48 PDT"]
[Termination "romulocardoso won by resignation"]

1. d4 {[%clk 0:02:59.6]} 1... Nf6 {[%clk 0:02:58.6]} 2. c4 {[%clk 0:02:58.9]}
2... g6 {[%clk 0:02:57.7]} 3. Nc3 {[%clk 0:02:53.6]} 3... d6 {[%clk 0:02:57.8]}
4. e4 {[%clk 0:02:53.6]} 4... Bg7 {[%clk 0:02:58.2]} 5. Nf3 {[%clk 0:02:51.4]}
5... O-O {[%clk 0:02:57.8]} 6. Be2 {[%clk 0:02:51.9]} 6... Bg4 {[%clk 0:02:57]}
7. Be3 {[%clk 0:02:51.6]} 7... c5 {[%clk 0:02:53.6]} 8. d5 {[%clk 0:02:50.6]}
8... Nbd7 {[%clk 0:02:52.8]} 9. Ng1 {[%clk 0:02:50.7]} 9... Bxe2 {[%clk
0:02:51.5]} 10. Ngxe2 {[%clk 0:02:51.6]} 10... Qa5 {[%clk 0:02:50.4]} 11. O-O
{[%clk 0:02:49.5]} 11... Qb4 {[%clk 0:02:48.7]} 12. Qb3 {[%clk 0:02:42.4]} 12...
Nb6 {[%clk 0:02:42.9]} 13. Qxb4 {[%clk 0:02:40]} 13... cxb4 {[%clk 0:02:43.8]}
14. Bxb6 {[%clk 0:02:34.7]} 14... bxc3 {[%clk 0:02:43.8]} 15. Bd4 {[%clk
0:02:33]} 15... cxb2 {[%clk 0:02:44.1]} 16. Bxb2 {[%clk 0:02:32.8]} 16... Nxe4
{[%clk 0:02:44.5]} 17. Bxg7 {[%clk 0:02:28.9]} 17... Kxg7 {[%clk 0:02:45.4]} 18.
f3 {[%clk 0:02:22]} 18... Nd2 {[%clk 0:02:40.4]} 19. Rfc1 {[%clk 0:02:21.7]}
19... Rac8 {[%clk 0:02:40.7]} 20. Rc2 {[%clk 0:02:17.2]} 20... Nxc4 {[%clk
0:02:38.7]} 21. Rac1 {[%clk 0:02:17.6]} 21... Nb6 {[%clk 0:02:38.9]} 22. Nd4
{[%clk 0:02:16.3]} 22... Rxc2 {[%clk 0:02:37.2]} 23. Rxc2 {[%clk 0:02:17.2]}
23... Nxd5 {[%clk 0:02:36.7]} 24. Nb5 {[%clk 0:02:16.3]} 24... a6 {[%clk
0:02:36]} 25. Nd4 {[%clk 0:02:11.6]} 25... e5 {[%clk 0:02:33.5]} 0-1